bitfinex/quotes_ETHUSD_20250715
["timestamp","ask_amount","ask_price","bid_price","bid_amount"]
[1752604780239,0.1632,3062.3,3061.7,0.1632]
[1752604780424,3.26583932,3062.0,3061.7,0.1632]
[1752604780740,33.1632,3061.9,3061.0,2.0]
[1752604780901,0.1632,3062.2,3061.7,0.1632]
[1752604781304,0.4342,3062.1,3061.7,0.1632]
[1752604781971,3.2664507,3061.5,3061.0,2.0]
[1752604782253,3.26633426,3061.6,3061.3,0.1632]
[1752604782404,0.9528,3061.8,3061.3,0.1632]
[1752604782605,3.26639765,3061.5,3061.3,0.1632]
[1752604782952,0.4342,3061.7,3061.3,0.1632]
[1752604783124,3.26647938,3061.4,3061.3,0.1632]
[1752604783323,3.70067938,3061.4,3061.3,0.1632]
[1752604783524,3.26679951,3061.1,3061.0,2.0]
[1752604783862,6.70099951,3061.1,3061.0,2.0]
[1752604784672,0.1632,3061.1,3061.0,2.0]
[1752604784839,3.0,3061.3,3061.0,2.1632]
[1752604785035,3.0,3061.4,3061.0,2.1632]
[1752604785241,0.4342,3062.4,3061.1,0.03266799]
[1752604785486,10.3839405,3062.0,3061.3,0.1632]
[1752604785785,3.26679951,3061.1,3061.0,2.0]
[1752604785985,6.70099951,3061.1,3061.0,2.0]
[1752604786691,6.86419951,3061.1,3061.0,2.0]
[1752604787873,3.26754672,3060.4,3060.3,0.1632]
[1752604788759,3.71307006,3061.0,3059.7,3.30096571]
[1752604788962,3.26747193,3060.5,3059.8,3.2681771]
[1752604789165,3.26772749,3060.3,3059.9,0.0326808]
[1752604789363,3.26783918,3060.2,3059.5,0.8071]
[1752604789661,3.26790097,3060.1,3059.6,0.03268401]
[1752604790174,3.0,3060.4,3059.6,0.03268401]
[1752604790175,3.2677793,3060.2,3059.6,0.03268401]
[1752604790377,3.26794036,3060.1,3059.6,0.03268401]
[1752604790549,3.26769541,3060.3,3059.6,0.03268401]
[1752604790751,6.26755406,3060.4,3059.6,0.03268401]
[1752604790752,3.0,3060.4,3059.6,0.03268401]
[1752604791086,3.0,3060.6,3059.5,4.07553572]
[1752604791270,3.0,3060.4,3059.5,0.8071]
[1752604791589,3.26797277,3060.1,3059.6,0.03268401]
[1752604791988,3.26777,3060.2,3059.6,0.03268401]
[1752604792284,0.4461,3060.0,3059.6,0.03268401]
[1752604792495,3.26840374,3059.6,3059.0,0.002]
[1752604792667,0.4461,3060.0,3059.0,3.30366087]
[1752604792668,3.0,3059.8,3059.0,3.30366087]
[1752604792866,0.4461,3060.0,3059.0,0.03469042]
[1752604793068,3.0,3060.3,3059.1,3.2689353]
[1752604793263,3.0,3060.3,3059.2,3.67754391]
[1752604793577,3.26840824,3059.6,3059.2,0.03268828]
[1752604793775,11.5260752,3059.6,3059.0,0.03469042]
[1752604794086,11.5260752,3059.6,3059.0,0.002]
[1752604794087,0.4461,3059.5,3059.0,0.002]
[1752604794610,8.25766951,3059.7,3059.1,3.26886841]
[1752604794809,0.7896,3059.8,3059.2,0.03268828]
[1752604794954,8.70376951,3060.2,3059.3,0.8184]
[1752604795153,3.0,3060.5,3059.8,3.26810976]
[1752604795388,3.26740841,3060.6,3059.9,3.2680097]
[1752604795690,3.26746402,3060.5,3059.9,3.2680097]
[1752604795889,8.25766951,3060.2,3059.0,0.002]
[1752604796063,8.25766951,3059.7,3059.1,3.26891424]
[1752604796402,8.25766951,3059.7,3059.3,3.26871934]
[1752604796589,8.25766951,3059.7,3059.3,3.268658]
[1752604796904,8.25766951,3060.1,3059.4,0.03268614]
[1752604797198,8.70376951,3059.6,3059.0,0.002]
[1752604797400,8.70376951,3059.6,3059.0,0.03469042]
[1752604797580,11.52660481,3059.1,3059.0,0.002]
[1752604798098,11.97270481,3059.1,3059.0,0.002]
[1752604798251,8.25766951,3058.3,3057.9,0.85760218]
[1752604798454,8.25766951,3058.3,3057.9,4.12779062]
[1752604798788,8.25766951,3058.3,3058.2,0.1632]
[1752604799001,8.70376951,3058.3,3058.2,0.1632]
[1752604799156,8.70376951,3058.3,3057.7,0.002]
[1752604799157,3.27032507,3057.8,3057.7,0.002]
[1752604799494,8.25766951,3057.8,3057.7,0.002]
[1752604799690,0.1632,3058.1,3057.7,0.002]
[1752604799990,3.1632,3058.7,3058.1,3.26990125]
[1752604800198,0.1632,3058.7,3058.3,0.1632]
[1752604800399,3.2689106,3059.2,3058.4,0.03269683]
[1752604800571,3.43204001,3059.2,3058.6,3.43266376]
[1752604800772,8.25766951,3058.8,3058.1,0.67032281]
[1752604801095,0.6093,3058.7,3058.1,0.1632]
[1752604801304,0.4461,3059.7,3059.0,3.26902778]
[1752604801452,10.37769451,3060.1,3058.7,3.2693628]
[1752604801658,0.4461,3060.1,3059.6,3.26839129]
[1752604801878,0.4461,3060.1,3059.7,3.26827894]
[1752604802155,10.37769451,3060.6,3059.8,0.03268187]
[1752604802399,10.37769451,3060.6,3059.3,0.8137]
[1752604802400,10.37769451,3060.6,3059.4,0.03268614]
[1752604802580,3.2675233,3060.5,3059.8,3.2681099]
[1752604802808,0.4461,3060.4,3059.9,0.0326808]
[1752604803011,0.4461,3060.3,3059.4,0.03268614]
[1752604803324,9.93159451,3060.6,3059.4,3.30124635]
[1752604803531,13.19893549,3060.6,3059.9,3.26801017]
[1752604803690,3.26744818,3060.5,3060.0,0.03267973]
[1752604803889,1.2194,3060.7,3060.0,0.03267973]
[1752604804116,9.93259451,3061.1,3059.6,0.03268401]
[1752604804319,9.93259451,3061.1,3060.4,3.26749541]
[1752604804320,30.0,3061.0,3060.4,3.26749541]
[1752604804594,0.001,3061.1,3060.5,0.03267439]
[1752604804909,0.001,3061.1,3061.0,3.26690623]
[1752604805110,0.001,3061.1,3060.3,0.4571]
[1752604805321,0.001,3061.1,3060.4,0.03267546]
[1752604805628,0.001,3061.1,3061.0,3.26690623]
[1752604806132,0.4471,3061.1,3060.4,0.03267546]
[1752604806291,0.001,3061.1,3060.5,3.26734709]
[1752604806621,0.001,3061.1,3060.6,0.03267333]
[1752604806793,0.001,3061.1,3060.8,3.2671197]
[1752604806987,0.001,3061.1,3060.9,0.03267012]
[1752604807501,0.001,3061.1,3060.8,3.29977894]
[1752604807709,0.001,3061.1,3061.0,3.26690623]
[1752604808032,0.001,3061.1,3061.0,0.03266906]
[1752604808189,0.001,3061.1,3060.3,0.4571]
[1752604808190,0.001,3061.1,3060.8,3.26704901]
[1752604808395,0.001,3061.1,3060.9,0.03267012]
[1752604808689,0.001,3061.1,3061.0,7.40790623]
[1752604809123,0.001,3061.1,3061.0,7.86500623]
[1752604809906,0.001,3061.1,3061.0,8.65320623]
[1752604810137,0.001,3061.1,3061.0,9.84522906]
[1752604810638,0.001,3061.1,3061.0,10.09068886]
[1752604810847,0.001,3062.4,3061.5,3.26629211]
[1752604811140,0.001,3062.4,3062.1,3.26565241]
[1752604811342,0.001,3062.4,3062.2,0.03265626]
[1752604811550,0.001,3062.4,3062.1,0.1632]
[1752604811842,0.001,3062.4,3062.2,0.03265626]
[1752604812004,0.001,3062.4,3062.3,3.42871938]
[1752604812205,0.001,3062.4,3062.3,4.67401938]
[1752604812542,0.001,3062.8,3062.7,3.26509289]
[1752604812715,0.001,3062.8,3062.7,3.42829289]
[1752604812919,0.001,3062.8,3062.7,0.1632]
[1752604813237,0.4471,3062.8,3062.4,0.1632]
[1752604813407,3.26530612,3062.5,3062.4,0.1632]
[1752604813601,3.26530612,3062.5,3061.7,4.05433598]
[1752604813602,3.71150377,3062.5,3062.2,0.1632]
[1752604813804,0.4471,3062.8,3062.3,0.03265519]
[1752604814045,0.4461,3062.7,3061.7,0.7882]
[1752604814206,0.779,3062.2,3061.0,1.19202283]
[1752604814404,0.779,3062.2,3060.8,0.8223]
[1752604814405,3.26634529,3061.6,3060.8,0.8223]
[1752604814647,0.4461,3061.5,3060.4,4.51047986]
[1752604814948,3.26690623,3061.0,3060.1,3.2678427]
[1752604815251,9.93159451,3060.5,3059.8,4.9603]
[1752604815405,10.37769451,3060.5,3059.8,4.9603]
[1752604815602,10.37769451,3060.5,3059.3,3.26865176]
[1752604815816,9.93159451,3059.9,3059.2,0.8223]
[1752604816016,0.4461,3059.8,3058.7,0.8223]
[1752604816440,3.26830732,3059.7,3059.0,3.26894611]
[1752604816644,3.26830732,3059.7,3059.0,3.30163653]
[1752604816951,0.4461,3059.8,3059.4,3.26860461]
[1752604817148,3.26794371,3060.1,3059.5,0.03268507]
[1752604817317,3.26798353,3060.0,3059.5,0.03268507]
[1752604817668,3.26818746,3059.8,3059.0,1.07088865]
[1752604817867,13.64381039,3059.9,3059.2,3.26876217]
[1752604818148,13.64381039,3059.9,3059.0,3.30166819]
[1752604818149,3.26829427,3059.7,3059.0,4.138]
[1752604818353,0.4441,3059.8,3058.8,0.03269255]
[1752604818536,3.4441,3059.8,3058.2,6.3143]
[1752604818736,0.4441,3059.7,3058.8,4.138]
[1752604818939,0.4441,3059.7,3058.9,0.03269149]
[1752604819251,3.26868798,3059.4,3058.7,7.40730277]
[1752604819425,0.4441,3059.7,3058.8,0.03269255]
[1752604819755,0.4441,3059.7,3059.0,3.26904217]
[1752604820061,0.4441,3059.7,3058.7,4.138]
[1752604820219,0.4441,3059.7,3058.8,0.03269255]
[1752604820412,0.779,3059.5,3058.8,0.03269255]
[1752604820649,0.4441,3059.7,3059.2,3.26872569]
[1752604820951,3.26789927,3060.1,3058.3,0.63163]
[1752604820952,0.4441,3060.5,3060.1,3.26778339]
[1752604821114,0.4441,3060.4,3059.7,4.138]
[1752604821322,0.4441,3060.4,3059.1,0.8223]
[1752604821323,0.4441,3060.4,3059.8,3.26817055]
[1752604821531,0.4441,3060.4,3059.9,0.0326808]
[1752604821850,10.37569451,3060.8,3059.9,0.0326808]
[1752604822056,10.37569451,3060.8,3060.2,3.2676977]
[1752604822239,10.37569451,3060.8,3059.6,4.138]
[1752604822240,10.37569451,3060.8,3060.1,0.03267867]
[1752604822561,3.26723086,3060.7,3060.1,3.26777347]
[1752604822766,3.26723086,3060.7,3060.2,0.0326776]
[1752604822927,3.26687101,3061.1,3060.5,3.2673771]
[1752604823127,0.4441,3061.2,3060.3,8.22786258]
[1752604823128,0.4441,3061.2,3060.6,0.03267333]
[1752604823473,3.26654707,3061.4,3060.6,3.30000409]
[1752604823767,12.29823195,3061.5,3060.7,3.26721631]
[1752604823968,8.25282768,3061.0,3060.9,0.1632]
[1752604824188,0.1632,3061.3,3060.8,0.1632]
[1752604824355,8.25282768,3061.0,3060.8,0.1632]
[1752604824688,8.25282768,3061.0,3060.0,4.137]
[1752604824689,3.26739559,3060.6,3060.0,4.137]
[1752604824978,3.26744076,3060.5,3060.3,0.1632]
[1752604825190,3.71164672,3060.4,3059.9,4.1696808]
[1752604825347,0.1632,3060.7,3060.0,0.1632]
[1752604825548,11.31415259,3060.7,3060.0,0.1632]
[1752604825850,10.36091126,3060.7,3060.2,3.26768466]
[1752604826048,0.4441,3061.2,3060.4,0.8223]
[1752604826352,0.4441,3061.2,3060.6,3.43048951]
[1752604826548,0.1632,3061.3,3060.7,0.03267226]
[1752604826754,0.1632,3061.3,3060.6,0.19587333]
[1752604827164,3.26669965,3061.2,3060.7,3.26722645]
[1752604827368,3.26669965,3061.2,3060.6,3.46316847]
[1752604827605,0.1632,3061.3,3060.6,0.19587333]
[1752604827909,0.4441,3061.8,3060.8,3.26710029]
[1752604828190,0.779,3062.0,3061.5,3.26631429]
[1752604828488,3.26622742,3061.7,3061.3,0.1632]
[1752604828655,0.4441,3061.6,3060.8,4.136]
[1752604828855,3.26637269,3061.5,3061.0,0.1632]
[1752604829195,0.4441,3061.5,3061.1,0.03266799]
[1752604829486,3.0,3061.8,3060.4,0.8223]
[1752604829686,0.6073,3061.5,3060.9,0.1632]
[1752604829876,3.71048673,3061.5,3061.2,0.1632]
[1752604830075,0.4441,3061.4,3061.2,0.1632]
[1752604830287,3.71068609,3061.3,3060.8,4.135]
[1752604830603,0.4441,3061.2,3060.9,0.1632]
[1752604830949,0.4441,3061.2,3060.9,0.19587012]
[1752604831384,3.26690623,3061.0,3059.9,0.7827]
[1752604831598,0.6073,3061.1,3060.6,0.1632]
[1752604831760,3.26722645,3060.7,3060.6,0.1632]
[1752604831968,3.26741746,3060.6,3060.2,0.1632]
[1752604832192,3.26745239,3060.5,3060.2,0.1632]
[1752604832367,13.18447235,3060.3,3059.5,3.26841138]
[1752604832567,3.26782014,3060.2,3059.8,0.1632]
[1752604832810,0.4441,3060.2,3059.4,0.7827]
[1752604832992,3.26821675,3059.8,3059.2,3.26877859]
[1752604833197,9.91681126,3059.7,3059.0,0.7847]
[1752604833375,9.91681126,3059.7,3059.1,0.03268935]
[1752604833580,3.26840177,3059.6,3059.1,0.03268935]
[1752604833895,0.4441,3059.6,3059.0,0.002]
[1752604834110,3.2686799,3059.4,3059.0,0.002]
[1752604834483,0.4441,3059.3,3059.0,0.002]
[1752604834877,3.26865117,3059.4,3059.0,0.002]
[1752604835077,3.2681206,3059.9,3059.2,3.26874027]
[1752604835078,3.26821486,3059.8,3059.2,3.26874027]
[1752604835277,3.26821486,3059.8,3059.3,0.03268721]
[1752604835510,3.26810928,3059.9,3059.3,3.30138097]
[1752604835976,3.26810928,3059.9,3059.1,3.26891242]
[1752604835977,0.4441,3059.8,3059.0,0.002]
[1752604836380,3.26858412,3059.5,3059.0,0.002]
[1752604836721,3.26861455,3059.5,3059.0,0.002]
[1752604836903,3.26829594,3059.7,3059.1,3.26887412]
[1752604837219,3.26829594,3059.7,3059.2,3.30151065]
[1752604837420,3.26870045,3059.4,3059.2,0.03268828]
[1752604837710,10.36091126,3059.6,3059.0,0.002]
[1752604838134,3.2689353,3059.1,3059.0,0.002]
[1752604838481,3.7130353,3059.1,3059.0,0.002]
[1752604838926,3.26985422,3058.3,3058.1,0.002]
[1752604839123,3.26989732,3058.2,3058.1,0.002]
[1752604839327,0.4441,3058.2,3058.1,0.002]
[1752604839494,3.4441,3058.7,3058.1,0.002]
[1752604839696,0.86747,3058.7,3058.1,0.002]
[1752604839899,3.26963573,3058.5,3058.1,0.002]
[1752604840428,0.4441,3058.4,3058.1,0.002]
[1752604840641,0.42337,3058.7,3058.1,0.002]
[1752604840929,0.4441,3058.7,3058.1,0.002]
[1752604841135,0.7896,3058.9,3058.1,0.002]
[1752604841314,3.26904217,3059.0,3058.1,4.03304717]
[1752604841635,0.4441,3058.8,3058.3,3.2697904]
[1752604841810,16.18577534,3059.1,3058.3,3.2697904]
[1752604841811,9.91681126,3059.1,3058.3,3.2697904]
[1752604842130,1.202,3059.5,3058.4,0.03269683]
[1752604842437,1.202,3059.5,3058.9,3.26905467]
[1752604842586,1.202,3059.5,3058.9,3.26904277]
[1752604842781,0.4441,3059.7,3059.0,0.03269042]
[1752604842987,0.1632,3059.9,3059.4,0.1632]
[1752604843182,0.4441,3059.8,3058.9,0.7631]
[1752604843487,11.15051126,3060.3,3059.0,0.03269042]
[1752604843820,11.15051126,3060.3,3059.9,3.26798683]
[1752604843821,0.1632,3060.3,3059.9,3.26798683]
[1752604844185,0.1632,3060.6,3060.1,3.26782227]
[1752604844391,30.4441,3060.5,3060.0,0.19587973]
[1752604844612,3.43054171,3060.6,3060.0,0.19587973]
[1752604844613,0.4441,3060.4,3060.0,0.19587973]
[1752604844823,0.4441,3060.3,3060.0,0.1632]
[1752604845392,0.4441,3060.7,3060.1,3.2677821]
[1752604845587,0.1632,3060.5,3060.1,3.26786706]
[1752604845892,0.1632,3060.5,3060.2,3.26772274]
[1752604846088,7.39891378,3061.0,3060.2,3.26772274]
[1752604846089,0.61487926,3061.2,3060.3,0.03267653]
[1752604846315,0.1632,3061.0,3060.4,0.1632]
[1752604846627,0.6073,3061.1,3060.6,3.26725461]
[1752604846831,3.26730648,3060.7,3060.1,0.7924]
[1752604847137,0.1632,3060.3,3059.7,0.1632]
[1752604847429,0.4441,3060.6,3060.0,3.26787977]
[1752604847629,0.6073,3060.6,3060.0,0.1632]
[1752604847846,3.26749865,3060.5,3060.0,0.1632]
[1752604848031,3.43054788,3060.6,3060.0,0.1632]
[1752604848234,0.6075,3060.6,3060.0,0.1632]
[1752604848537,5.22732406,3060.6,3060.0,0.1632]
[1752604848698,3.26761718,3060.4,3059.6,9.55577554]
[1752604848897,0.1632,3060.4,3059.8,3.43138168]
[1752604849295,0.1632,3060.4,3059.8,3.43135753]
[1752604849804,0.1632,3060.4,3059.8,3.43138468]
[1752604850000,0.1632,3060.4,3059.8,0.1632]
[1752604850202,0.1632,3060.4,3059.9,0.0326808]
[1752604850441,0.1632,3060.9,3060.8,3.26705373]
[1752604850637,0.1632,3061.4,3061.3,3.26658609]
[1752604850837,0.4443,3061.7,3061.2,3.2666237]
[1752604851039,8.69705562,3061.6,3061.2,0.1632]
[1752604851337,0.4443,3061.5,3061.2,0.1632]
[1752604851542,0.4443,3061.4,3060.6,0.7624]
[1752604851755,8.25275562,3060.8,3060.3,3.26759476]
[1752604851957,11.96418203,3060.8,3060.4,0.1632]
[1752604852165,0.61503219,3062.3,3060.9,3.26701297]
[1752604852305,0.61503219,3062.3,3062.1,3.26565112]
[1752604852306,0.17073219,3062.3,3062.1,3.26565112]
[1752604852508,0.17073219,3062.3,3061.0,10.8555]
[1752604852734,6.7095327,3062.6,3061.4,3.26645095]
[1752604852938,3.7095327,3062.6,3062.0,3.26578024]
[1752604853135,3.26642568,3062.4,3061.8,3.26595184]
[1752604853435,3.26642568,3062.4,3061.7,7.39314145]
[1752604853436,3.26642568,3062.4,3061.9,0.03265945]
[1752604853641,0.001,3062.4,3061.9,3.29860447]
[1752604853808,0.001,3062.4,3061.9,0.03265945]
[1752604854029,0.001,3062.4,3062.0,3.26583932]
[1752604854235,0.001,3062.4,3062.1,0.03265732]
[1752604854420,3.26651217,3062.4,3061.9,4.8942]
[1752604854620,0.001,3062.4,3062.0,3.29848851]
[1752604854866,0.001,3062.4,3062.0,0.03265839]
[1752604855043,3.26573266,3062.1,3062.0,0.03265839]
[1752604855242,3.26584068,3062.0,3061.3,4.126]
[1752604855446,1.1418552,3062.1,3061.1,3.26679951]
[1752604855650,3.26636041,3061.6,3061.0,0.7664]
[1752604855832,10.34963144,3062.0,3061.0,0.7664]
[1752604856021,3.26670081,3061.2,3060.6,3.26726977]
[1752604856227,0.4443,3061.5,3060.5,4.03380525]
[1752604856448,0.7661,3061.1,3060.2,3.26769922]
[1752604856636,3.26690623,3061.0,3060.4,3.26754554]
[1752604856836,0.7661,3061.1,3060.5,0.03267439]
[1752604857149,3.26722645,3060.7,3059.9,0.8074]
[1752604857324,9.90533144,3060.8,3059.9,0.8074]
[1752604857520,9.90533144,3060.8,3059.7,4.124]
[1752604857771,3.26787244,3060.1,3059.5,9.56888124]
[1752604858067,9.90533144,3060.1,3059.5,8.76150003]
[1752604858276,9.90533144,3060.1,3059.1,4.01989829]
[1752604858424,3.26837004,3059.7,3059.1,0.751]
[1752604858624,10.34963144,3060.1,3059.1,0.751]
[1752604859057,3.26861484,3059.4,3058.8,3.26924482]
[1752604859261,33.71227385,3060.0,3058.8,3.26916998]
[1752604859262,0.4443,3060.0,3058.8,3.26916998]
[1752604859462,3.26854947,3059.5,3058.8,3.26922789]
[1752604859780,0.4443,3060.0,3058.7,7.39228989]
[1752604860065,3.71232147,3060.0,3058.8,3.26923282]
[1752604860242,0.4443,3059.9,3058.7,4.15569362]
[1752604860690,3.26835067,3059.7,3058.8,3.26918674]
[1752604860892,3.26887607,3059.2,3058.1,0.7978]
[1752604861178,0.4443,3059.6,3058.3,4.123]
[1752604861385,0.4443,3059.6,3058.5,3.26957658]
[1752604861595,3.26861476,3059.4,3058.1,0.7978]
[1752604861730,0.4443,3059.6,3058.4,4.123]
[1752604862074,3.2690243,3059.1,3058.5,3.26951142]
[1752604862386,0.1632,3059.2,3058.6,0.1632]
[1752604862579,3.26919382,3058.9,3058.1,0.7978]
[1752604862880,34.05861108,3059.1,3058.1,0.7978]
[1752604862881,0.1632,3058.8,3058.3,3.43291764]
[1752604863268,0.1632,3058.8,3058.3,0.1632]
[1752604863269,0.6075,3058.8,3058.3,0.1632]
[1752604863455,3.71375371,3058.7,3058.1,0.002]
[1752604863658,0.1632,3058.6,3058.1,0.002]
[1752604863837,0.1632,3058.6,3058.1,3.27193326]
[1752604864038,0.4443,3059.3,3058.2,0.48189897]
[1752604864235,0.4443,3059.8,3058.3,1.2393]
[1752604864435,0.1632,3059.4,3058.9,0.1632]
[1752604864640,0.1632,3059.2,3058.6,3.43263189]
[1752604864849,3.4320538,3059.2,3058.6,0.1632]
[1752604865055,3.2690005,3059.1,3058.6,0.1632]
[1752604865268,0.1632,3059.2,3058.6,0.1632]
[1752604865572,3.43204173,3059.2,3058.6,0.1632]
[1752604865772,31.2339,3059.1,3058.1,0.002]
[1752604865973,31.2339,3059.1,3058.1,0.1652]
[1752604865974,0.1632,3058.6,3058.1,0.1652]
[1752604866175,3.26975268,3058.4,3058.1,0.002]
[1752604866376,0.1632,3058.2,3058.1,0.002]
[1752604866708,3.43309732,3058.2,3058.1,0.002]
[1752604866988,5.34631489,3058.2,3058.1,0.002]
[1752604867152,2.07641757,3058.2,3058.1,0.002]
[1752604867348,4.63159732,3058.2,3058.1,0.002]
[1752604867776,4.63159732,3058.2,3057.8,0.002]
[1752604867777,3.27021812,3057.9,3057.8,0.002]
[1752604868106,42.90533144,3057.9,3056.9,0.002]
[1752604868246,3.27118089,3057.0,3056.9,0.002]
[1752604868683,3.71548089,3057.0,3056.9,0.002]
[1752604868867,0.4443,3057.0,3056.9,0.002]
[1752604869073,3.71548089,3057.0,3056.9,0.002]
[1752604869258,8.15060219,3057.0,3056.9,0.002]
[1752604870071,3.4443,3057.0,3056.9,0.002]
[1752604870274,0.1632,3057.0,3056.9,0.002]
[1752604870648,0.6075,3057.0,3056.9,0.002]
[1752604870847,7.6108879,3056.9,3055.7,0.1632]
[1752604871069,9.90533144,3056.6,3055.4,0.1632]
[1752604871298,4.121,3056.6,3055.5,0.81222786]
[1752604871458,0.1632,3056.3,3055.8,0.1632]
[1752604871658,0.1632,3056.1,3055.6,0.1632]
[1752604871859,30.7599,3056.0,3055.1,0.7879]
[1752604872079,0.1632,3055.7,3055.2,3.27310814]
[1752604872278,0.1632,3055.7,3055.4,3.27288323]
[1752604872481,0.1632,3055.7,3055.3,3.27297905]
[1752604872665,0.6075,3055.7,3055.1,0.1632]
[1752604872861,3.27268974,3055.6,3054.5,3.27378519]
[1752604873162,0.1632,3055.4,3054.9,3.27336476]
[1752604873362,0.1632,3055.4,3055.0,3.2732599]
[1752604873684,0.4443,3055.3,3054.2,0.7879]
[1752604873987,0.2143,3055.3,3054.8,3.27344438]
[1752604874152,0.2143,3055.3,3054.5,0.03273858]
[1752604874505,0.7599,3056.0,3054.6,0.48193751]
[1752604874789,0.7599,3056.0,3054.6,0.4492]
[1752604874988,0.7599,3056.0,3054.8,3.27353672]
[1752604875177,0.7599,3056.4,3054.9,0.03273429]
[1752604875492,3.27264479,3055.7,3055.0,3.27325061]
[1752604875663,13.17788183,3055.8,3054.7,0.03273643]
[1752604875863,3.27158577,3056.7,3055.8,3.2724048]
[1752604876064,9.90533144,3056.2,3054.8,0.7836]
[1752604876277,3.0,3056.0,3054.4,0.7836]
[1752604876491,3.27297165,3055.4,3054.4,0.7836]
[1752604876784,3.27285529,3055.5,3054.8,3.27346195]
[1752604876984,0.4443,3055.6,3054.5,0.03273858]
[1752604877151,0.7573,3055.8,3054.5,0.03273858]
[1752604877348,0.7573,3055.8,3054.4,1.2327]
[1752604877554,3.27316892,3055.2,3054.5,3.27376625]
[1752604877748,8.28485952,3055.1,3054.0,5.3645]
[1752604877991,0.7896,3055.0,3054.1,0.03274287]
[1752604878289,9.07445952,3055.4,3054.8,3.27353672]
[1752604878451,30.7896,3055.4,3055.0,3.27330776]
[1752604878649,4.5582,3055.5,3055.0,3.27330776]
[1752604878650,3.27275832,3055.6,3055.0,3.27325488]
[1752604878868,3.2731375,3055.2,3054.6,3.27368109]
[1752604879151,3.2731375,3055.2,3054.0,3.2743323]
[1752604879152,3.27364389,3054.7,3054.0,3.2743323]
[1752604879489,0.4382,3054.9,3054.1,0.03274287]
[1752604879783,0.4382,3054.9,3053.8,0.03274608]
[1752604879983,0.4382,3054.9,3053.8,0.48803577]
[1752604880184,8.28485952,3054.8,3053.8,0.03274608]
[1752604880389,11.55849923,3054.8,3054.1,3.27421724]
[1752604880587,11.55849923,3054.8,3053.8,0.03274608]
[1752604880588,3.27399115,3054.4,3053.8,3.27450569]
[1752604880899,0.7687,3054.2,3053.4,0.03275037]
[1752604881209,3.27482315,3053.6,3053.1,4.119]
[1752604881375,3.27482315,3053.6,3052.8,0.75]
[1752604881376,4.75826284,3053.6,3052.8,0.75]
[1752604881727,3.71302315,3053.6,3052.8,4.02559534]
[1752604881897,10.83202315,3053.6,3052.6,3.27581255]
[1752604882096,11.62162315,3053.6,3052.2,0.7593]
[1752604882406,8.28485952,3053.0,3052.5,3.27590382]
[1752604882609,0.7896,3053.6,3053.4,3.27502447]
[1752604882809,0.7896,3053.6,3052.8,3.27568134]
[1752604882966,3.4382,3054.2,3052.7,0.7573]
[1752604882967,0.7896,3054.1,3052.9,0.03275574]
[1752604883307,3.2747377,3053.7,3052.9,0.03275574]
[1752604883604,3.27471591,3053.7,3052.7,0.7573]
[1752604883808,3.27471591,3053.7,3052.3,7.39417311]
[1752604883809,0.9528,3053.2,3052.6,0.1632]
[1752604884105,0.9528,3053.2,3052.3,0.7573]
[1752604884106,8.44805952,3052.8,3052.3,3.43934872]
[1752604884316,0.4382,3052.7,3052.3,3.43934872]
[1752604884710,0.4382,3052.7,3052.3,0.1632]
[1752604885103,0.1632,3052.8,3052.4,3.2761106]
[1752604885310,0.4382,3053.3,3052.9,3.27555012]
[1752604885311,0.6014,3053.3,3052.9,3.27555012]
[1752604885621,30.4382,3053.2,3051.9,0.7573]
[1752604885818,8.28485952,3052.8,3052.3,0.1632]
[1752604886004,8.28485952,3052.8,3052.6,3.27589026]
[1752604886212,0.1632,3052.9,3052.3,0.1632]
[1752604886524,3.43879806,3052.9,3052.3,0.1632]
[1752604886681,0.1632,3052.9,3052.4,3.27609998]
[1752604886881,0.6014,3052.9,3052.5,3.27598653]
[1752604887312,0.6014,3052.9,3052.3,0.1632]
[1752604887515,3.87702247,3052.9,3052.3,0.1632]
[1752604887714,0.4382,3052.9,3052.5,3.2759627]
[1752604887914,0.1632,3052.6,3052.3,3.27621793]
[1752604888230,0.1632,3052.6,3052.2,0.002]
[1752604888400,0.1632,3052.3,3052.2,0.002]
[1752604888598,0.1632,3052.3,3052.2,3.27832527]
[1752604888788,3.0,3053.1,3052.2,3.27832527]
[1752604888789,0.1632,3053.3,3053.0,3.27539468]
[1752604888986,0.7896,3053.8,3053.2,3.27525219]
[1752604889203,4.117,3054.2,3053.1,3.27532066]
[1752604889402,1.2278,3054.3,3053.2,0.03275252]
[1752604889603,0.24037941,3055.0,3052.7,0.1632]
[1752604889604,3.7896,3053.3,3052.7,0.1632]
[1752604889802,0.1632,3053.1,3052.2,0.002]
[1752604890041,0.1632,3053.1,3052.4,0.1632]
[1752604890203,0.1632,3053.1,3052.2,0.002]
[1752604890204,4.5552,3053.2,3052.3,3.27614921]
[1752604890535,0.7896,3053.3,3053.1,3.27529247]
[1752604890721,3.43831509,3053.4,3052.8,0.1632]
[1752604890923,0.4382,3053.2,3052.8,0.1632]
[1752604891124,12.35005104,3052.9,3052.5,0.002]
[1752604891343,3.27589595,3052.6,3052.5,0.002]
[1752604891545,0.1632,3052.7,3052.5,0.002]
[1752604891708,0.4382,3052.6,3052.5,0.002]
[1752604892042,0.17090819,3053.2,3052.5,0.002]
[1752604892210,9.51265952,3053.4,3052.5,0.002]
[1752604892211,0.7896,3053.4,3052.9,3.27557404]
[1752604892409,8.72305952,3053.8,3052.6,3.72156033]
[1752604892410,9.51265952,3053.8,3052.6,3.72156033]
[1752604892642,0.1632,3053.5,3053.0,0.1632]
[1752604892805,1.2278,3054.2,3053.2,3.27517394]
[1752604893007,0.1632,3053.7,3053.3,3.27507886]
[1752604893208,0.7896,3054.2,3053.4,3.275036]
[1752604893425,0.7896,3054.2,3053.1,0.03275359]
[1752604893426,33.27436141,3054.1,3053.5,3.27484714]
[1752604893623,0.7896,3054.2,3053.8,3.27458836]
[1752604893824,4.9056,3054.6,3053.3,0.03275144]
[1752604894036,5.3438,3054.6,3053.3,0.03275144]
[1752604894239,6.2739806,3054.4,3053.6,3.27472825]
[1752604894422,6.27388842,3054.5,3053.6,3.27482315]
[1752604894635,3.0,3054.5,3053.5,0.0327493]